[Event "TUR-ch Youth U17 2019"]
[Site "Belek"]
[Date "2019.01.23"]
[Round "6"]
[White "Ozgur, Isa"]
[Black "Gunduz, Umut Erdem"]
[Result "0-1"]
[ECO "A67"]
[WhiteElo "2090"]
[BlackElo "2255"]
[Annotator "NA"]
[PlyCount "74"]
[EventDate "2019.01.20"]
[EventType "swiss"]
[EventCountry "TUR"]
[SourceTitle "playchess.com"]
[Source "ChessBase"]
[SourceQuality "1"]
[TimeControl "5400+30"]

1. d4 {[%emt 0:00:30]} Nf6 {[%emt 0:00:30]} 2. c4 {[%emt 0:00:30]} c5 {[%emt 0:00:00]} 3. d5 {[%emt 0:00:30]} e6 {[%emt 0:01:00]} 4. Nc3 {[%emt 0:00:00]} exd5 {[%emt 0:00:00]} 5. cxd5 {[%emt 0:05:00]} d6 {[%emt 0:04:00]} 6. e4 {[%emt 0:00:30]} g6 {[%emt 0:00:30]} 7. f4 {[%emt 0:00:30]} Bg7 {[%emt 0:00:00]} 8. Bb5+ {[%emt 0:00:00]} Nfd7 {[%emt 0:00:00]} 9. Bd3 {[%emt 0:01:00]} O-O {[%emt 0:00:30]} 10. Nf3 {[%emt 0:00:00]} Na6 {[%emt 0:03:30]} 11. O-O {[%emt 0:00:00]} Qe7 {[%emt 0:05:30]} 12. Re1 {[%emt 0:01:30]} Re8 {[%emt 0:20:30]} 13. a3 {[%emt 0:15:30]} Nc7 {[%emt 0:11:30]} 14. Bf1 {[%emt 0:06:30]} Qf8 {[%emt 0:01:30]} 15. a4 {[%emt 0:24:30]} a6 {[%emt 0:04:30]} 16. h3 {[%emt 0:08:30]} b6 {[%emt 0:12:30]} 17. Qd2 {[%emt 0:04:30]} Bb7 {[%emt 0:02:30]} 18. Bc4 {[%emt 0:04:30]} Kh8 {[%emt 0:05:30]} 19. Rb1 {[%emt 0:01:30]} f5 {[%emt 0:02:30]} 20. e5 {[%emt 0:09:37]} dxe5 {[%emt 0:00:30]} 21. d6 {[%emt 0:00:27]} Bxf3 {[%emt 0:02:30]} 22. dxc7 {[%emt 0:02:29]} Bc6 {[%emt 0:00:30]} 23. Bd5 {[%emt 0:02:18]} Qd6 {[%emt 0:02:15]} 24. Bxc6 {[%emt 0:01:16]} Qxc6 {[%emt 0:00:02]} 25. Qd5 {[%emt 0:00:20]} Qxc7 {[%emt 0:01:27]} 26. fxe5 {[%emt 0:01:16]} Nxe5 {[%emt 0:00:07]} 27. Bf4 {[%emt 0:02:11]} Rad8 {[%emt 0:00:09]} 28. Bxe5 {[%emt 0:01:26]} Bxe5 {[%emt 0:01:05]} 29. Qc4 {[%emt 0:01:02]} Bd4+ {[%emt 0:00:15]} 30. Kh1 {[%emt 0:00:25]} Qg3 {[%emt 0:00:40]} 31. Ne2 {[%emt 0:00:52]} Qf2 {[%emt 0:01:15]} 32. Qxa6 {[%emt 0:04:03]} f4 {[%emt 0:02:03]} 33. Qxb6 {[%emt 0:02:44]} f3 {[%emt 0:00:23]} 34. Rg1 {[%emt 0:00:26]} Qxe2 {[%emt 0:01:08]} 35. gxf3 {[%emt 0:00:35]} Bxg1 {[%emt 0:00:31]} 36. Qf6+ {[%emt 0:00:35]} Kg8 {[%emt 0:00:01]} 37. Rxg1 {[%emt 0:00:13]} Rd1 {[%emt 0:00:04]} 0-1

[Event "TUR-ch Youth U17 2019"]
[Site "Belek"]
[Date "2019.01.23"]
[Round "6"]
[White "Acar, Utku Cengiz"]
[Black "Guncan, Berke"]
[Result "1-0"]
[ECO "B36"]
[WhiteElo "2078"]
[BlackElo "2016"]
[Annotator "NA"]
[PlyCount "73"]
[EventDate "2019.01.20"]
[EventType "swiss"]
[EventCountry "TUR"]
[SourceTitle "playchess.com"]
[Source "ChessBase"]
[SourceQuality "1"]
[TimeControl "5400+30"]

1. e4 {[%emt 0:00:30]} c5 {[%emt 0:00:30]} 2. Nf3 {[%emt 0:00:30]} g6 {[%emt 0:01:30]} 3. d4 {[%emt 0:00:30]} cxd4 {[%emt 0:00:00]} 4. Nxd4 {[%emt 0:00:00]} Nc6 {[%emt 0:00:00]} 5. c4 {[%emt 0:01:00]} Nf6 {[%emt 0:00:30]} 6. Nc3 {[%emt 0:00:30]} Nxd4 {[%emt 0:00:30]} 7. Qxd4 {[%emt 0:00:00]} d6 {[%emt 0:00:00]} 8. Be2 {[%emt 0:01:00]} Bg7 {[%emt 0:00:00]} 9. Be3 {[%emt 0:07:30]} O-O {[%emt 0:00:30]} 10. Qd2 {[%emt 0:00:30]} a5 {[%emt 0:01:30]} 11. Rd1 {[%emt 0:04:30]} Be6 {[%emt 0:07:30]} 12. O-O {[%emt 0:05:30]} a4 {[%emt 0:00:30]} 13. Bd4 {[%emt 0:01:30]} Qa5 {[%emt 0:01:30]} 14. f4 {[%emt 0:01:30]} Rfc8 {[%emt 0:04:30]} 15. b3 {[%emt 0:00:30]} axb3 {[%emt 0:34:30]} 16. axb3 {[%emt 0:00:30]} Qb4 {[%emt 0:00:30]} 17. f5 {[%emt 0:02:30]} Bd7 {[%emt 0:01:30]} 18. Bxf6 {[%emt 0:05:30]} Bxf6 {[%emt 0:00:30]} 19. Nd5 {[%emt 0:00:30]} Qxb3 {[%emt 0:01:30]} 20. fxg6 {[%emt 0:12:30]} Be6 {[%emt 0:11:30]} 21. Nxf6+ {[%emt 0:15:30]} exf6 {[%emt 0:00:30]} 22. gxh7+ {[%emt 0:00:00]} Kxh7 {[%emt 0:06:30]} 23. Rxf6 {[%emt 0:06:00]} Kg8 {[%emt 0:05:30]} 24. Qg5+ {[%emt 0:08:30]} Kf8 {[%emt 0:00:30]} 25. Rxe6 {[%emt 0:00:00]} Qb6+ {[%emt 0:00:30]} 26. Kh1 {[%emt 0:02:00]} fxe6 {[%emt 0:03:07]} 27. Rf1+ {[%emt 0:03:30]} Ke8 {[%emt 0:01:18]} 28. Qg7 {[%emt 0:00:30]} Ra1 {[%emt 0:00:57]} 29. Qxa1 {[%emt 0:00:30]} Kd7 {[%emt 0:00:31]} 30. Rf7+ {[%emt 0:02:10]} Kc6 {[%emt 0:00:11]} 31. Qa4+ {[%emt 0:00:05]} Kc5 {[%emt 0:00:00]} 32. Qa3+ {[%emt 0:00:15]} Kc6 {[%emt 0:00:18]} 33. e5 {[%emt 0:00:30]} Qc5 {[%emt 0:03:11]} 34. Qa4+ {[%emt 0:03:29]} b5 {[%emt 0:01:11]} 35. cxb5+ {[%emt 0:00:22]} Kd5 {[%emt 0:00:07]} 36. Bf3+ {[%emt 0:00:42]} Kxe5 {[%emt 0:00:08]} 37. Qe4# {[%emt 0:00:00]} 1-0

[Event "TUR-ch Youth U17 2019"]
[Site "Belek"]
[Date "2019.01.23"]
[Round "6"]
[White "Kirilmaz, Emre"]
[Black "Onur, Cem"]
[Result "1-0"]
[ECO "D03"]
[WhiteElo "2035"]
[BlackElo "1885"]
[Annotator "NA"]
[PlyCount "75"]
[EventDate "2019.01.20"]
[EventType "swiss"]
[EventCountry "TUR"]
[SourceTitle "playchess.com"]
[Source "ChessBase"]
[SourceQuality "1"]
[TimeControl "5400+30"]

1. d4 {[%emt 0:00:30]} d5 {[%emt 0:00:30]} 2. Nf3 {[%emt 0:00:30]} Nf6 {[%emt 0:00:30]} 3. Bg5 {[%emt 0:02:30]} e6 {[%emt 0:01:30]} 4. Nbd2 {[%emt 0:00:00]} Be7 {[%emt 0:00:30]} 5. c3 {[%emt 0:01:00]} Nbd7 {[%emt 0:00:30]} 6. e3 {[%emt 0:00:30]} b6 {[%emt 0:01:30]} 7. Bd3 {[%emt 0:00:30]} Bb7 {[%emt 0:00:30]} 8. Qa4 {[%emt 0:00:30]} O-O {[%emt 0:17:30]} 9. Ne5 {[%emt 0:00:30]} c5 {[%emt 0:07:30]} 10. O-O {[%emt 0:03:30]} c4 {[%emt 0:03:30]} 11. Bb1 {[%emt 0:01:30]} Nxe5 {[%emt 0:02:30]} 12. dxe5 {[%emt 0:00:30]} Ng4 {[%emt 0:00:30]} 13. Qc2 {[%emt 0:04:30]} g6 {[%emt 0:00:30]} 14. Bf4 {[%emt 0:00:00]} Bg5 {[%emt 0:00:30]} 15. Nf3 {[%emt 0:03:00]} Bxf4 {[%emt 0:02:30]} 16. exf4 {[%emt 0:00:00]} f6 {[%emt 0:08:30]} 17. Qe2 {[%emt 0:19:00]} Nh6 {[%emt 0:10:30]} 18. Nd4 {[%emt 0:00:30]} Qe7 {[%emt 0:02:30]} 19. Bc2 {[%emt 0:00:30]} f5 {[%emt 0:09:30]} 20. Qd2 {[%emt 0:04:30]} a5 {[%emt 0:01:30]} 21. Rae1 {[%emt 0:01:30]} Ba6 {[%emt 0:02:30]} 22. a4 {[%emt 0:01:30]} Qd7 {[%emt 0:01:30]} 23. Re3 {[%emt 0:00:30]} b5 {[%emt 0:04:30]} 24. axb5 {[%emt 0:05:30]} Bxb5 {[%emt 0:00:00]} 25. h4 {[%emt 0:00:30]} a4 {[%emt 0:06:18]} 26. h5 {[%emt 0:02:30]} a3 {[%emt 0:02:10]} 27. bxa3 {[%emt 0:01:30]} Rxa3 {[%emt 0:00:38]} 28. Rh3 {[%emt 0:05:30]} Kg7 {[%emt 0:00:35]} 29. Qe3 {[%emt 0:01:30]} Ba4 {[%emt 0:07:11]} 30. Bxa4 {[%emt 0:01:30]} Rxa4 {[%emt 0:00:02]} 31. Qg3 {[%emt 0:00:30]} Qe7 {[%emt 0:01:52]} 32. hxg6 {[%emt 0:01:30]} hxg6 {[%emt 0:00:08]} 33. Qg5 {[%emt 0:00:00]} Qxg5 {[%emt 0:01:27]} 34. fxg5 {[%emt 0:00:00]} Nf7 {[%emt 0:00:30]} 35. Nxe6+ {[%emt 0:00:30]} Kg8 {[%emt 0:00:00]} 36. Nxf8 {[%emt 0:00:30]} Kxf8 {[%emt 0:00:00]} 37. f4 {[%emt 0:00:00]} Ke7 {[%emt 0:00:00]} 38. Rb1 {[%emt 0:00:00]} 1-0

[Event "TUR-ch Youth U17 2019"]
[Site "Belek"]
[Date "2019.01.23"]
[Round "6"]
[White "Yungucu, Arda"]
[Black "Aytekin, Murat Eren"]
[Result "1/2-1/2"]
[ECO "A48"]
[WhiteElo "1943"]
[BlackElo "2163"]
[Annotator "NA"]
[PlyCount "42"]
[EventDate "2019.01.20"]
[EventType "swiss"]
[EventCountry "TUR"]
[SourceTitle "playchess.com"]
[Source "ChessBase"]
[SourceQuality "1"]
[TimeControl "5400+30"]

1. Nf3 {[%emt 0:00:30]} g6 {[%emt 0:00:30]} 2. d4 {[%emt 0:01:30]} Bg7 {[%emt 0:00:00]} 3. c3 {[%emt 0:01:30]} d6 {[%emt 0:00:00]} 4. Bg5 {[%emt 0:04:30]} h6 {[%emt 0:01:30]} 5. Bh4 {[%emt 0:00:30]} Nf6 {[%emt 0:05:30]} 6. Nbd2 {[%emt 0:01:30]} O-O {[%emt 0:00:30]} 7. e4 {[%emt 0:01:30]} Nc6 {[%emt 0:00:30]} 8. Be2 {[%emt 0:00:30]} e5 {[%emt 0:07:30]} 9. dxe5 {[%emt 0:00:30]} dxe5 {[%emt 0:00:00]} 10. O-O {[%emt 0:01:30]} Qe7 {[%emt 0:01:00]} 11. Qc2 {[%emt 0:02:30]} g5 {[%emt 0:05:30]} 12. Bg3 {[%emt 0:00:30]} Nh5 {[%emt 0:00:30]} 13. Nc4 {[%emt 0:06:30]} Nf4 {[%emt 0:04:30]} 14. Ne3 {[%emt 0:01:30]} Be6 {[%emt 0:04:30]} 15. Rfe1 {[%emt 0:14:30]} Rae8 {[%emt 0:15:30]} 16. Bf1 {[%emt 0:04:30]} Qf6 {[%emt 0:04:30]} 17. Bxf4 {[%emt 0:18:30]} exf4 {[%emt 0:02:30]} 18. Nd5 {[%emt 0:04:30]} Qd8 {[%emt 0:01:30]} 19. Rad1 {[%emt 0:02:30]} Qc8 {[%emt 0:01:30]} 20. Nd4 {[%emt 0:09:30]} Ne5 {[%emt 0:10:30]} 21. Nf5 {[%emt 0:07:56]} Bxf5 {[%emt 0:05:30]} 1/2-1/2

[Event "TUR-ch Youth U17 2019"]
[Site "Belek"]
[Date "2019.01.23"]
[Round "6"]
[White "Catal, Uktenur"]
[Black "Kocyigit, Buse Naz"]
[Result "1-0"]
[ECO "D03"]
[WhiteElo "1854"]
[BlackElo "2043"]
[Annotator "NA"]
[PlyCount "49"]
[EventDate "2019.01.20"]
[EventType "swiss"]
[EventCountry "TUR"]
[SourceTitle "playchess.com"]
[Source "ChessBase"]
[SourceQuality "1"]
[TimeControl "5400+30"]

1. d4 {[%emt 0:00:30]} Nf6 {[%emt 0:00:30]} 2. Bg5 {[%emt 0:00:00]} d5 {[%emt 0:00:30]} 3. Nd2 {[%emt 0:00:00]} Nbd7 {[%emt 0:01:30]} 4. Ngf3 {[%emt 0:00:30]} g6 {[%emt 0:04:30]} 5. e3 {[%emt 0:02:30]} Bg7 {[%emt 0:00:00]} 6. Bd3 {[%emt 0:02:30]} O-O {[%emt 0:02:00]} 7. h3 {[%emt 0:04:30]} c5 {[%emt 0:03:30]} 8. c3 {[%emt 0:00:00]} b6 {[%emt 0:06:30]} 9. O-O {[%emt 0:05:00]} Bb7 {[%emt 0:03:30]} 10. Qb1 {[%emt 0:02:30]} Ne8 {[%emt 0:17:30]} 11. Bf4 {[%emt 0:09:30]} Nc7 {[%emt 0:03:30]} 12. h4 {[%emt 0:09:30]} Ne6 {[%emt 0:09:30]} 13. Bh2 {[%emt 0:03:30]} a6 {[%emt 0:02:30]} 14. Ne1 {[%emt 0:11:30]} Rc8 {[%emt 0:09:30]} 15. f4 {[%emt 0:07:30]} Nc7 {[%emt 0:04:30]} 16. h5 {[%emt 0:03:30]} Nf6 {[%emt 0:08:30]} 17. hxg6 {[%emt 0:01:30]} fxg6 {[%emt 0:02:23]} 18. f5 {[%emt 0:08:30]} Ng4 {[%emt 0:07:43]} 19. Bf4 {[%emt 0:02:30]} e5 {[%emt 0:04:11]} 20. dxe5 {[%emt 0:00:30]} Bxe5 {[%emt 0:00:17]} 21. fxg6 {[%emt 0:08:42]} Bxf4 {[%emt 0:00:34]} 22. gxh7+ {[%emt 0:00:10]} Kh8 {[%emt 0:01:01]} 23. exf4 {[%emt 0:00:04]} d4 {[%emt 0:00:22]} 24. Bf5 {[%emt 0:03:15]} Qd5 {[%emt 0:04:46]} 25. Bxg4 {[%emt 0:00:41]} 1-0

[Event "TUR-ch Youth U17 2019"]
[Site "Belek"]
[Date "2019.01.23"]
[Round "6"]
[White "Baspinar, Lara"]
[Black "Sahin, Hayrun Nisa"]
[Result "0-1"]
[ECO "B27"]
[WhiteElo "1763"]
[BlackElo "1743"]
[Annotator "NA"]
[PlyCount "88"]
[EventDate "2019.01.20"]
[EventType "swiss"]
[EventCountry "TUR"]
[SourceTitle "playchess.com"]
[Source "ChessBase"]
[SourceQuality "1"]
[TimeControl "5400+30"]

1. e4 {[%emt 0:00:30]} c5 {[%emt 0:00:30]} 2. Nf3 {[%emt 0:00:30]} g6 {[%emt 0:00:30]} 3. d4 {[%emt 0:00:00]} cxd4 {[%emt 0:00:00]} 4. Qxd4 {[%emt 0:00:00]} Nf6 {[%emt 0:00:00]} 5. Nc3 {[%emt 0:00:30]} Nc6 {[%emt 0:00:30]} 6. Qa4 {[%emt 0:00:30]} d6 {[%emt 0:02:30]} 7. e5 {[%emt 0:06:30]} dxe5 {[%emt 0:00:30]} 8. Nxe5 {[%emt 0:01:30]} Qd4 {[%emt 0:00:00]} 9. Nxc6 {[%emt 0:03:30]} Qxa4 {[%emt 0:04:00]} 10. Nxa4 {[%emt 0:03:30]} bxc6 {[%emt 0:00:00]} 11. Bd3 {[%emt 0:03:30]} e5 {[%emt 0:04:00]} 12. Bg5 {[%emt 0:03:30]} Nd7 {[%emt 0:14:30]} 13. O-O-O {[%emt 0:11:30]} f6 {[%emt 0:09:30]} 14. Be3 {[%emt 0:04:30]} Be7 {[%emt 0:01:30]} 15. Bc4 {[%emt 0:06:30]} h5 {[%emt 0:17:30]} 16. Be6 {[%emt 0:14:30]} Rb8 {[%emt 0:06:30]} 17. Rd3 {[%emt 0:15:30]} Nb6 {[%emt 0:13:30]} 18. Bb3 {[%emt 0:06:31]} Ba6 {[%emt 0:08:46]} 19. Rdd1 {[%emt 0:07:32]} Rh7 {[%emt 0:04:28]} 20. Rhe1 {[%emt 0:05:02]} g5 {[%emt 0:04:41]} 21. Bc5 {[%emt 0:02:15]} Nxa4 {[%emt 0:00:40]} 22. Bxe7 {[%emt 0:00:10]} Rxe7 {[%emt 0:01:23]} 23. Bxa4 {[%emt 0:00:30]} Bb5 {[%emt 0:00:00]} 24. Bxb5 {[%emt 0:00:22]} Rxb5 {[%emt 0:00:00]} 25. Rd6 {[%emt 0:00:00]} Kf7 {[%emt 0:03:50]} 26. Rxc6 {[%emt 0:00:11]} e4 {[%emt 0:00:15]} 27. c4 {[%emt 0:00:58]} Rbe5 {[%emt 0:02:14]} 28. Kd2 {[%emt 0:02:13]} Ra5 {[%emt 0:00:48]} 29. a3 {[%emt 0:00:28]} f5 {[%emt 0:00:20]} 30. Rh6 {[%emt 0:00:26]} Rd7+ {[%emt 0:00:40]} 31. Kc2 {[%emt 0:00:09]} h4 {[%emt 0:01:08]} 32. Rh7+ {[%emt 0:01:07]} Ke6 {[%emt 0:00:00]} 33. Rh5 {[%emt 0:00:35]} Kf6 {[%emt 0:00:21]} 34. Rh6+ {[%emt 0:01:24]} Ke5 {[%emt 0:00:21]} 35. Rg6 {[%emt 0:00:15]} Kf4 {[%emt 0:00:25]} 36. Re3 {[%emt 0:00:22]} Rh7 {[%emt 0:00:40]} 37. b4 {[%emt 0:00:17]} Re5 {[%emt 0:00:12]} 38. Kd2 {[%emt 0:00:51]} Re8 {[%emt 0:00:31]} 39. h3 {[%emt 0:00:50]} Rd8+ {[%emt 0:00:04]} 40. Ke2 {[%emt 0:00:26]} Rhd7 {[%emt 0:00:00]} 41. g3+ {[%emt 0:00:00]} Ke5 {[%emt 0:00:26]} 42. gxh4 {[%emt 0:00:45]} Rd1 {[%emt 0:01:33]} 43. Rxe4+ {[%emt 0:01:08]} Kxe4 {[%emt 0:00:11]} 44. f4 {[%emt 0:00:19]} R8d2# {[%emt 0:00:04]} 0-1

[Event "TUR-ch Youth U17 2019"]
[Site "Belek"]
[Date "2019.01.23"]
[Round "6"]
[White "Yilmaz, Duygu Sila"]
[Black "Esti, Kubra Selenay"]
[Result "0-1"]
[ECO "B06"]
[WhiteElo "1407"]
[BlackElo "1662"]
[Annotator "NA"]
[PlyCount "80"]
[EventDate "2019.01.20"]
[EventType "swiss"]
[EventCountry "TUR"]
[SourceTitle "playchess.com"]
[Source "ChessBase"]
[SourceQuality "1"]
[TimeControl "5400+30"]

1. e4 {[%emt 0:01:30]} g6 {[%emt 0:00:30]} 2. d4 {[%emt 0:00:00]} Bg7 {[%emt 0:00:30]} 3. Nc3 {[%emt 0:00:00]} d6 {[%emt 0:00:30]} 4. Be3 {[%emt 0:00:30]} a6 {[%emt 0:04:30]} 5. Qd2 {[%emt 0:01:30]} Nd7 {[%emt 0:04:30]} 6. Bd3 {[%emt 0:00:00]} b5 {[%emt 0:01:30]} 7. a4 {[%emt 0:01:00]} b4 {[%emt 0:01:30]} 8. Nd1 {[%emt 0:04:30]} a5 {[%emt 0:04:30]} 9. c3 {[%emt 0:03:30]} c5 {[%emt 0:04:30]} 10. Nf3 {[%emt 0:01:30]} Ba6 {[%emt 0:06:30]} 11. O-O {[%emt 0:06:30]} c4 {[%emt 0:07:30]} 12. Bb1 {[%emt 0:00:30]} b3 {[%emt 0:03:30]} 13. Qe2 {[%emt 0:07:30]} Qc7 {[%emt 0:12:30]} 14. Nd2 {[%emt 0:08:30]} e5 {[%emt 0:07:30]} 15. d5 {[%emt 0:04:30]} Ne7 {[%emt 0:05:30]} 16. f4 {[%emt 0:21:30]} h6 {[%emt 0:18:55]} 17. fxe5 {[%emt 0:16:03]} dxe5 {[%emt 0:03:45]} 18. Bf2 {[%emt 0:08:36]} Nc8 {[%emt 0:03:38]} 19. Ne3 {[%emt 0:03:08]} Nd6 {[%emt 0:00:37]} 20. Bg3 {[%emt 0:03:14]} Qc5 {[%emt 0:04:06]} 21. Bf2 {[%emt 0:02:41]} Qc7 {[%emt 0:00:23]} 22. Nf3 {[%emt 0:00:39]} O-O-O {[%emt 0:01:02]} 23. Bg3 {[%emt 0:00:59]} Rde8 {[%emt 0:00:56]} 24. Nd2 {[%emt 0:01:59]} Kb7 {[%emt 0:01:13]} 25. Bf2 {[%emt 0:01:01]} Ref8 {[%emt 0:00:32]} 26. Bg3 {[%emt 0:00:38]} h5 {[%emt 0:00:32]} 27. h4 {[%emt 0:00:28]} Bh6 {[%emt 0:00:35]} 28. Nf3 {[%emt 0:00:28]} f6 {[%emt 0:00:33]} 29. Kh2 {[%emt 0:00:42]} Bg7 {[%emt 0:01:14]} 30. Nd2 {[%emt 0:00:17]} Bh6 {[%emt 0:00:31]} 31. Nf3 {[%emt 0:00:42]} Qc5 {[%emt 0:00:36]} 32. Bf2 {[%emt 0:00:15]} Qc8 {[%emt 0:00:25]} 33. Bg3 {[%emt 0:00:42]} Bg7 {[%emt 0:00:28]} 34. Nd4 {[%emt 0:00:37]} exd4 {[%emt 0:00:50]} 35. Bxd6 {[%emt 0:00:09]} dxe3 {[%emt 0:00:59]} 36. Bxf8 {[%emt 0:00:05]} Qxf8 {[%emt 0:00:02]} 37. Qxe3 {[%emt 0:00:12]} Qd6+ {[%emt 0:00:13]} 38. Kh1 {[%emt 0:00:26]} Ne5 {[%emt 0:00:25]} 39. Rd1 {[%emt 0:00:49]} Ng4 {[%emt 0:00:28]} 40. Qg1 {[%emt 0:00:57]} Qg3 {[%emt 0:00:12]} 0-1

[Event "TUR-ch Youth U17 2019"]
[Site "Belek"]
[Date "2019.01.24"]
[Round "7"]
[White "Gunduz, Umut Erdem"]
[Black "Turkmen, Ataberk"]
[Result "1-0"]
[ECO "B09"]
[WhiteElo "2255"]
[BlackElo "1856"]
[Annotator "NA"]
[PlyCount "93"]
[EventDate "2019.01.20"]
[EventType "swiss"]
[EventCountry "TUR"]
[SourceTitle "playchess.com"]
[Source "ChessBase"]
[SourceQuality "1"]
[TimeControl "5400+30"]

{[%evp 19,92,27,60,44,32767,83,69,30,43,32767,35,24,32767,62,91,96,106,32767,32767,132,32767,32767,201,32767,32767,32767,32767,175,32767,32767,32767,234,179,170,32767,126,164,123,120,-139,-174,-161,-117,-135,32767,32767,32767,-227,-42,-95,0,32767,0,32767,32767,32767,32767,32767,32767,32767,0,0,32767,-41,-43,32767,32767,32767,32767,-16,32767,32767,32767,32767,29972]} 1. e4 d6 {[%emt 0:00:30]} 2. d4 {[%emt 0:00:30]} Nf6 {[%emt 0:00:30]} 3. Nc3 {[%emt 0:00:30]} g6 {[%emt 0:00:30]} 4. f4 {[%emt 0:00:30]} Bg7 {[%emt 0:00:30]} 5. Nf3 {[%emt 0:00:00]} O-O {[%emt 0:03:30]} 6. e5 {[%emt 0:00:00]} dxe5 {[%emt 0:00:30]} 7. fxe5 {[%emt 0:00:00]} Nd5 {[%emt 0:00:30]} 8. Bc4 {[%emt 0:00:30]} Nb6 {[%emt 0:15:30]} 9. Bb3 {[%emt 0:00:00] B09: Pirc Defence: Austrian Attack} a5 {[%emt 0:15:30]} (9... Nc6 10. O-O Na5 11. h3 Nxb3 12. axb3 f6 13. Qe2 c6 14. Ne4 fxe5 15. dxe5 Nd5 16. c4 Nf4 17. Bxf4 Rxf4 {½-½ (37) Artemiev,V (2674)-Petrosian,T (2607) Moscow 2016}) 10. a4 {[%emt 0:00:30]} Na6 {[%emt 0:01:30]} 11. Be3 {[%emt 0:04:30]} Nb4 $146 {[%emt 0:03:30]} ({Predecessor:} 11... c6 12. Ne4 Nc7 13. c4 Na6 14. O-O Nb4 15. Qe2 Bf5 16. Nf2 Qc7 {1-0 (30) Ismagambetov,A (2548)-Dzhumaev,M (2493) Almaty 2015}) 12. O-O {[%emt 0:00:30]} N6d5 {[%emt 0:03:30]} 13. Qd2 {[%emt 0:01:30]} Nxe3 {[%emt 0:08:30]} 14. Qxe3 {[%emt 0:00:30]} c6 {[%emt 0:08:30]} 15. Ng5 {[%emt 0:14:30]} Nd5 {[%emt 1:05:30]} 16. Qf3 {[%emt 0:27:00]} e6 {[%emt 0:02:30]} 17. Nce4 {[%emt 0:05:30]} ({Not} 17. Nxf7 $2 Qe7 $17) 17... f6 {[%emt 0:06:30]} 18. exf6 {[%emt 0:13:30]} Bxf6 {[%emt 0:00:30]} 19. Nxf6+ {[%emt 0:01:30]} Rxf6 {[%emt 0:03:30]} 20. Qg3 {[%emt 0:00:30]} Rf5 {[%emt 0:03:16]} 21. Rxf5 {[%emt 0:01:30]} exf5 {[%emt 0:00:30]} 22. Qh4 {[%emt 0:00:00]} h5 {[%emt 0:02:27]} 23. Re1 {[%emt 0:04:00]} Kg7 {[%emt 0:05:50]} 24. Bxd5 {[%emt 0:03:30]} cxd5 {[%emt 0:00:40] [#]} 25. Qf4 {[%emt 0:02:30]} (25. Re6 $142 $1 {[%mdl 512]}) 25... Ra6 {[%emt 0:01:52]} 26. Qe5+ {[%emt 0:00:30]} Rf6 {[%emt 0:01:10]} 27. Re3 {[%emt 0:06:30]} Qd6 {[%emt 0:02:29]} 28. Qe8 {[%emt 0:00:30]} (28. Qe7+ $18 Qxe7 29. Rxe7+ Kf8 30. Rh7) 28... Rf8 {[%emt 0:01:33] [#]} 29. Re7+ $2 {[%emt 0:00:00]} (29. Qb5 $1 $16 {is necessary to keep the advantage.}) 29... Kg8 $1 {[%emt 0:00:04]} 30. h4 {[%emt 0:04:00] [#]} Rxe8 {[%emt 0:00:41]} (30... f4 $1 $19 31. Re5 Rxe8 32. Rxe8+ Kg7 33. Rxc8 Qb6) 31. Rxe8+ {[%emt 0:00:30]} Kg7 {[%emt 0:01:03]} 32. Rxc8 {[%emt 0:00:30]} Qg3 {[%emt 0:00:41]} 33. Nf3 {[%emt 0:00:30] [#]} (33. Rc7+ $17 {was the only defense.} Kf8 34. Rc8+ Ke7 35. Nf3) 33... Qf4 $2 {[%emt 0:01:29]} ({Black should try} 33... g5 $1 $19 {[%cal Rg5g4][%mdl 512]} 34. hxg5 (34. Nxg5 Qe1+) 34... h4) 34. b3 {[%emt 0:00:30] [#]} b6 {[%emt 0:01:43]} ({Black should try} 34... g5 $1 $17 {[%cal Rg5g4][%mdl 512]} 35. hxg5 (35. Nxg5 Qxd4+) 35... h4) 35. Kf2 {[%emt 0:00:30]} Qe4 {[%emt 0:01:38]} 36. Rc7+ {[%emt 0:00:30]} Kf8 {[%emt 0:00:14]} 37. Rc6 {[%emt 0:00:30]} f4 {[%emt 0:01:23]} 38. Kg1 {[%emt 0:01:30]} Kg7 {[%emt 0:01:37]} 39. Kh2 {[%emt 0:00:00]} Kf8 {[%emt 0:00:06]} 40. Rc8+ {[%emt 0:01:00]} Kg7 {[%emt 0:00:23]} 41. c4 {[%emt 0:00:30] [#]} dxc4 {[%emt 0:00:51]} (41... Qc2 $1 $17 42. Rc7+ Kf8 43. Rc8+ Ke7) 42. bxc4 {[%emt 0:00:00]} Qc2 {[%emt 0:00:04]} 43. Rc7+ {[%emt 0:00:00]} Kf8 {[%emt 0:00:14]} 44. d5 $1 {[%emt 0:01:30]} Qxa4 {[%emt 0:01:20]} 45. d6 {[%emt 0:00:30]} Qb4 {[%emt 0:00:19]} 46. Rc8+ {[%emt 0:00:00]} Kg7 {[%emt 0:00:20]} 47. d7 {[%emt 0:00:00]} 1-0

[Event "TUR-ch Youth U17 2019"]
[Site "Belek"]
[Date "2019.01.24"]
[Round "7"]
[White "Aytekin, Murat Eren"]
[Black "Acar, Utku Cengiz"]
[Result "1/2-1/2"]
[ECO "A65"]
[WhiteElo "2163"]
[BlackElo "2078"]
[Annotator "NA"]
[PlyCount "72"]
[EventDate "2019.01.20"]
[EventType "swiss"]
[EventCountry "TUR"]
[SourceTitle "playchess.com"]
[Source "ChessBase"]
[SourceQuality "1"]
[TimeControl "5400+30"]

1. d4 Nf6 {[%emt 0:00:30]} 2. c4 {[%emt 0:00:30]} g6 {[%emt 0:00:30]} 3. Nc3 {[%emt 0:00:30]} Bg7 {[%emt 0:00:00]} 4. e4 {[%emt 0:00:00]} d6 {[%emt 0:00:00]} 5. f3 {[%emt 0:00:00]} O-O {[%emt 0:01:30]} 6. Be3 {[%emt 0:00:00]} c5 {[%emt 0:00:30]} 7. d5 {[%emt 0:00:00]} e6 {[%emt 0:08:30]} 8. Qd2 {[%emt 0:00:00]} exd5 {[%emt 0:02:30]} 9. cxd5 {[%emt 0:00:00]} a6 {[%emt 0:03:30]} 10. a4 {[%emt 0:00:30]} Nbd7 {[%emt 0:03:30]} 11. Nh3 {[%emt 0:02:00]} Ne5 {[%emt 0:10:30] A65: Modern Benoni: 6 e4} (11... Qa5 12. Ra3 Ne8 13. Be2 Ne5 14. Nf2 f5 15. O-O Nf6 16. exf5 Bxf5 17. h3 Rae8 18. Bh6 Bxh6 19. Qxh6 {0-1 (46) Bocharov,D (2576)-Shimanov,A (2623) Astana 2017}) 12. Nf2 {[%emt 0:00:30]} h5 {[%emt 0:00:30]} 13. Be2 {[%emt 0:02:30]} Nh7 {[%emt 0:02:30]} 14. O-O {[%emt 0:05:30]} f5 {[%emt 0:07:30]} 15. exf5 {[%emt 0:08:30]} Bxf5 {[%emt 0:04:30]} 16. Nfe4 {[%emt 0:05:30]} Qe7 $146 {[%emt 0:05:30]} ({Predecessor:} 16... Nf7 17. Kh1 Qe7 18. Rae1 {½-½ (67) Rolvag,M (2162)-Mikkelsen,N (2418) Helsingor 2013}) 17. Rae1 {[%emt 0:05:30]} Rae8 {[%emt 0:53:30]} 18. Ng3 {[%emt 0:39:00]} Qh4 {[%emt 0:12:30]} 19. Nce4 {[%emt 0:10:30]} Bxe4 {[%emt 0:09:30]} 20. Nxe4 {[%emt 0:01:30]} Ng4 {[%emt 0:01:30]} 21. fxg4 {[%emt 0:00:30]} Rxe4 {[%emt 0:00:00]} 22. Rxf8+ {[%emt 0:01:30]} Nxf8 {[%emt 0:03:00]} 23. Bf2 {[%emt 0:06:30]} Qf6 {[%emt 0:01:30]} 24. gxh5 {[%emt 0:06:30]} gxh5 {[%emt 0:00:00]} 25. Bxh5 {[%emt 0:00:30]} Rxa4 {[%emt 0:02:23]} 26. b3 {[%emt 0:06:30]} Ra1 {[%emt 0:05:08]} 27. h4 {[%emt 0:04:30]} b5 {[%emt 0:04:18]} 28. Bg4 {[%emt 0:10:03]} a5 {[%emt 0:02:05]} 29. Rxa1 {[%emt 0:03:17]} Qxa1+ {[%emt 0:00:18]} 30. Kh2 {[%emt 0:01:01]} a4 {[%emt 0:00:52]} 31. bxa4 {[%emt 0:00:21]} bxa4 $11 {[%emt 0:01:04]} 32. Bg3 {[%emt 0:03:58]} a3 {[%emt 0:03:25]} 33. Be6+ {[%emt 0:00:50]} Kh8 {[%emt 0:03:28]} 34. Qe2 {[%emt 0:03:22]} Qb1 {[%emt 0:01:00]} 35. Qh5+ {[%emt 0:02:45]} Qh7 {[%emt 0:00:02]} 36. Qe2 {[%emt 0:00:33]} Qb1 {[%emt 0:00:15]} 1/2-1/2